bitfinex/quotes_SOLUSD_20251002
["timestamp","ask_amount","ask_price","bid_price","bid_amount"]
[1759441276265,4.29645542,232.75,232.74,0.72]
[1759441278178,2.74924146,232.82,232.74,0.72]
[1759441278179,12.87,232.97,232.76,20.8]
[1759441278371,12.89961946,232.89,232.81,20.0]
[1759441278564,7.69750442,232.97,232.84,20.0]
[1759441278565,30.36,232.88,232.84,20.0]
[1759441278780,30.36,232.87,232.85,0.72]
[1759441279168,30.38,232.86,232.85,0.72]
[1759441279682,30.38,232.86,232.84,20.0]
[1759441279683,4.29461026,232.85,232.84,20.0]
[1759441279865,34.65461026,232.85,232.84,20.72]
[1759441280868,10.73571201,232.87,232.84,20.72]
[1759441281059,30.36,232.86,232.85,0.72]
[1759441281261,10.73571201,232.87,232.86,0.72]
[1759441281458,41.09571201,232.87,232.86,0.72]
[1759441282373,45.38995343,232.87,232.86,0.72]
[1759441283673,41.07571201,232.87,232.86,0.72]
[1759441285580,45.36995343,232.87,232.86,0.72]
[1759441290496,41.03571201,232.87,232.86,0.72]
[1759441291483,41.03571201,232.87,232.84,0.66]
[1759441291674,41.03571201,232.87,232.85,0.66]
[1759441292796,10.87647521,232.86,232.82,20.0]
[1759441292994,30.28,232.85,232.8,0.66]
[1759441293396,30.28,232.85,232.79,20.0]
[1759441293594,30.28,232.85,232.8,0.66]
[1759441293892,30.28,232.85,232.79,20.0]
[1759441293893,15.03178147,232.84,232.81,0.66]
[1759441294090,30.3,232.83,232.79,20.0]
[1759441294311,30.3,232.83,232.8,0.66]
[1759441294486,30.3,232.83,232.81,0.66]
[1759441294880,30.3,232.83,232.8,0.66]
[1759441295405,15.03307275,232.82,232.81,0.66]
[1759441297705,0.66,232.93,232.81,21.46]
[1759441297993,45.30661857,232.92,232.87,20.0]
[1759441298194,45.30661857,232.92,232.87,20.66]
[1759441298581,45.96661857,232.92,232.87,20.66]
[1759441299393,30.34,232.91,232.87,20.66]
[1759441299983,15.02790896,232.9,232.87,0.66]
[1759441300201,30.34,232.89,232.87,20.66]
[1759441300591,30.34,232.89,232.87,0.66]
[1759441300781,30.34,232.89,232.87,20.66]
[1759441301185,4.29405702,232.88,232.87,0.66]
[1759441301382,4.29405702,232.88,232.87,20.66]
[1759441301802,4.29405702,232.88,232.87,20.0]
[1759441302403,34.61405702,232.88,232.87,20.0]
[1759441303117,45.34919958,232.88,232.85,20.66]
[1759441304279,45.34919958,232.88,232.83,0.66]
[1759441304689,45.34919958,232.88,232.84,20.0]
[1759441305503,45.34919958,232.88,232.83,0.66]
[1759441305709,45.34919958,232.88,232.84,20.0]
[1759441306208,46.00919958,232.88,232.84,20.0]
[1759441306591,46.00919958,232.88,232.82,20.0]
[1759441306592,0.66,232.87,232.82,20.0]
[1759441306792,30.98,232.86,232.82,20.0]
[1759441307210,30.98,232.86,232.8,0.66]
[1759441307388,30.98,232.86,232.81,20.0]
[1759441307585,30.98,232.86,232.8,0.66]
[1759441308012,30.98,232.86,232.79,20.0]
[1759441308193,0.66,232.85,232.79,20.0]
[1759441308398,30.98,232.84,232.79,20.0]
[1759441308603,45.35242708,232.83,232.79,20.66]
[1759441310904,45.35242708,232.83,232.79,0.66]
[1759441311088,45.35242708,232.83,232.8,20.0]
[1759441311793,45.35242708,232.83,232.8,20.66]
[1759441312104,45.35242708,232.83,232.8,0.66]
[1759441312997,45.35242708,232.83,232.81,0.66]
[1759441315015,45.35242708,232.83,232.79,20.66]
[1759441315218,45.35242708,232.83,232.8,0.66]
[1759441316085,45.35242708,232.83,232.76,20.8]
[1759441316086,15.03242708,232.83,232.81,20.66]
[1759441316285,30.28,232.82,232.77,20.0]
[1759441316504,30.28,232.82,232.78,0.66]
[1759441316688,30.28,232.82,232.79,20.0]
[1759441316896,30.28,232.82,232.8,0.66]
[1759441317095,34.57516364,232.82,232.81,20.0]
[1759441317317,34.57516364,232.82,232.81,20.66]
[1759441317503,4.29516364,232.82,232.81,20.66]
[1759441317705,34.57516364,232.82,232.81,20.66]
[1759441318196,4.29516364,232.82,232.81,20.66]
[1759441318522,34.55516364,232.82,232.81,20.66]
[1759441319605,34.55516364,232.82,232.81,0.66]
[1759441319808,34.55516364,232.82,232.81,20.66]
[1759441322412,30.24,232.82,232.81,20.66]
[1759441323847,30.24,232.83,232.81,20.66]
[1759441324143,15.03049041,232.86,232.82,0.66]
[1759441324330,30.24,232.85,232.82,0.66]
[1759441324527,4.2947947,232.84,232.82,0.66]
[1759441324823,4.2947947,232.84,232.83,20.0]
[1759441325036,4.2947947,232.84,232.83,20.66]
[1759441325509,34.51463258,232.85,232.83,20.66]
[1759441325714,34.51463258,232.85,232.84,0.66]
[1759441326125,4.29463258,232.85,232.84,0.66]
[1759441328422,15.02790896,232.9,232.85,20.0]
[1759441328622,30.22,232.89,232.86,0.66]
[1759441328830,30.22,232.89,232.87,0.66]
[1759441329434,4.29405702,232.88,232.87,0.66]
[1759441330561,10.73422069,232.9,232.87,0.66]
[1759441330845,30.22,232.89,232.87,0.66]
[1759441331824,10.73422069,232.9,232.87,0.66]
[1759441332053,30.22,232.89,232.87,0.66]
[1759441332827,10.73422069,232.9,232.87,0.66]
[1759441333165,30.22,232.89,232.87,0.66]
[1759441333366,30.22,232.89,232.85,20.0]
[1759441333528,30.22,232.89,232.87,0.66]
[1759441334957,15.69919958,232.88,232.85,20.0]
[1759441335132,15.69919958,232.88,232.8,20.8]
[1759441335133,30.2,232.87,232.81,20.0]
[1759441335332,0.67,232.86,232.81,20.0]
[1759441335544,30.89,232.85,232.81,20.0]
[1759441335849,0.67,232.84,232.81,20.0]
[1759441336057,30.22,232.83,232.81,20.0]
[1759441336262,30.89,232.83,232.81,20.0]
[1759441336576,30.89,232.83,232.79,20.0]
[1759441337151,15.03307275,232.82,232.79,20.0]
[1759441338037,15.70307275,232.82,232.79,20.0]
[1759441339140,15.03307275,232.82,232.79,20.0]
[1759441339548,15.03307275,232.82,232.79,20.66]
[1759441341343,30.22,232.81,232.79,20.66]
[1759441344565,4.29553264,232.8,232.79,20.0]
[1759441344780,15.75436425,232.8,232.74,20.0]
[1759441344955,30.94,232.79,232.74,20.0]
[1759441345153,0.72,232.78,232.74,20.0]
[1759441345355,30.22,232.77,232.74,20.0]
[1759441345751,14.51692725,232.77,232.74,20.0]
[1759441346255,0.72,232.78,232.74,20.0]
[1759441346971,15.03630192,232.77,232.74,20.0]
[1759441349657,15.03630192,232.77,232.74,20.7]
[1759441352256,10.74021566,232.77,232.74,20.7]
[1759441353769,0.68,232.76,232.74,20.0]
[1759441354545,4.29645542,232.75,232.74,20.0]
[1759441355873,15.03759398,232.75,232.74,20.0]
[1759441356044,15.03759398,232.75,232.72,0.2]
[1759441357155,15.71759398,232.75,232.72,0.2]
[1759441357357,15.03759398,232.75,232.72,0.2]
[1759441357563,15.71759398,232.75,232.72,0.2]
[1759441360464,0.68,232.74,232.72,0.2]
[1759441363276,4.29682464,232.73,232.72,0.2]
[1759441363975,4.29682464,232.73,232.72,0.88]
[1759441364982,10.74113856,232.75,232.72,0.88]
[1759441365473,10.74113856,232.75,232.73,0.68]
[1759441365686,10.74113856,232.75,232.72,0.2]
[1759441365687,10.74113856,232.75,232.74,0.68]
[1759441366255,10.74113856,232.75,232.72,0.88]
[1759441366455,10.74113856,232.75,232.73,0.68]
[1759441367960,10.74113856,232.75,232.72,0.2]
[1759441368155,10.74113856,232.75,232.73,0.68]
[1759441368363,10.74113856,232.75,232.74,0.68]
[1759441368552,4.29608626,232.77,232.74,0.68]
[1759441368878,4.29608626,232.77,232.75,20.0]
[1759441369264,4.29608626,232.77,232.76,0.68]
[1759441371379,10.87647521,232.8,232.76,0.68]
[1759441373182,15.03501008,232.79,232.76,0.68]
[1759441374483,15.03501008,232.79,232.77,0.68]
[1759441374661,15.03501008,232.79,232.75,50.22]
[1759441374861,15.03501008,232.79,232.76,0.68]
[1759441376188,15.71501008,232.79,232.76,30.22]
[1759441376780,15.71501008,232.79,232.75,30.22]
[1759441376976,15.71501008,232.79,232.75,30.9]
[1759441377277,15.03501008,232.79,232.76,0.68]
[1759441378384,15.03501008,232.79,232.75,50.22]
[1759441378572,15.03501008,232.79,232.76,0.68]
[1759441380683,15.03501008,232.79,232.75,50.9]
[1759441381074,15.03501008,232.79,232.75,50.22]
[1759441381482,15.03501008,232.79,232.75,50.9]
[1759441381687,15.03501008,232.79,232.75,50.22]
[1759441381886,15.03501008,232.79,232.75,50.9]
[1759441382087,15.03501008,232.79,232.75,20.68]
[1759441382278,15.03501008,232.79,232.76,30.22]
[1759441382882,15.03501008,232.79,232.76,30.9]
[1759441383274,15.03501008,232.79,232.75,20.0]
[1759441383469,15.03501008,232.79,232.77,0.68]
[1759441384271,15.03501008,232.79,232.76,30.22]
[1759441384493,15.03501008,232.79,232.76,30.9]
[1759441384687,4.29571716,232.79,232.77,20.68]
[1759441384878,4.29571716,232.79,232.78,0.68]
[1759441385085,4.29551591,232.81,232.78,0.68]
[1759441385391,4.29551591,232.81,232.79,50.2]
[1759441385573,4.29551591,232.81,232.8,0.68]
[1759441386795,15.03049041,232.86,232.8,0.68]
[1759441387172,4.29442583,232.86,232.83,20.0]
[1759441387475,4.29442583,232.86,232.84,30.88]
[1759441387676,4.29442583,232.86,232.85,0.68]
[1759441388079,4.2942164,232.88,232.86,20.0]
[1759441388280,4.2942164,232.88,232.87,30.88]
[1759441388896,10.73358158,232.92,232.88,20.0]
[1759441389073,10.73358158,232.92,232.88,20.68]
[1759441389488,10.73358158,232.92,232.88,0.68]
[1759441389706,10.73358158,232.92,232.88,20.68]
[1759441389867,10.73358158,232.92,232.88,20.0]
[1759441390073,10.73358158,232.92,232.89,0.68]
[1759441391684,10.73358158,232.92,232.88,20.0]
[1759441391685,10.73358158,232.92,232.9,30.88]
[1759441391886,4.29313527,232.93,232.9,20.0]
[1759441392098,4.29313527,232.93,232.91,30.88]
[1759441395401,4.29313527,232.93,232.92,0.68]
[1759441395914,4.29313527,232.93,232.92,20.68]
[1759441396109,4.29285552,232.95,232.92,20.0]
[1759441396408,4.29285552,232.95,232.94,20.0]
[1759441396593,4.29285552,232.95,232.94,20.68]
[1759441396786,4.29221392,232.98,232.94,20.68]
[1759441397100,4.29221392,232.98,232.95,30.88]
[1759441397401,4.29221392,232.98,232.96,0.68]
[1759441397608,4.29221392,232.98,232.97,30.88]
[1759441398090,15.02250811,232.99,232.97,30.88]
[1759441399594,15.02250811,232.99,232.97,30.2]
[1759441399785,15.02250811,232.99,232.97,30.88]
[1759441402118,15.02250811,232.99,232.98,0.68]
[1759441403184,4.2920297,232.99,232.98,0.68]
[1759441405098,4.2920297,232.99,232.98,30.86]
[1759441410386,145.88985849,233.0,232.99,20.0]
[1759441410617,145.88985849,233.0,232.99,20.66]
[1759441415802,141.598,233.0,232.99,20.66]
[1759441425032,141.598,233.0,232.99,86.56]
[1759441431941,141.598,233.0,232.99,20.66]
[1759441432732,141.598,233.0,232.99,20.0]
[1759441432733,142.278,233.0,232.99,20.0]
[1759441432927,157.29945922,233.0,232.97,20.0]
[1759441433135,0.68,232.99,232.97,20.0]
[1759441433337,0.68,232.98,232.97,20.0]
[1759441434523,0.68,232.98,232.95,20.0]
[1759441434723,4.29258241,232.96,232.95,20.0]
[1759441434933,4.97258241,232.96,232.95,20.0]
[1759441436347,15.70403845,232.96,232.93,50.16]
[1759441436543,0.68,232.95,232.93,50.16]
[1759441436744,0.68,232.94,232.93,50.16]
[1759441436934,4.97295097,232.94,232.93,50.16]
[1759441437132,4.97295097,232.94,232.93,20.0]
[1759441437727,4.97295097,232.94,232.91,20.0]
[1759441437728,15.7053284,232.94,232.91,20.0]
[1759441437930,0.68,232.93,232.89,20.0]
[1759441438132,0.68,232.92,232.91,20.0]
[1759441439034,4.97331959,232.92,232.91,20.0]
[1759441440933,15.70661857,232.92,232.89,20.0]
[1759441441133,15.02661857,232.92,232.91,20.0]
[1759441441861,15.73661857,232.92,232.91,20.0]
[1759441445534,15.73661857,232.92,232.89,20.0]
[1759441447954,15.73661857,232.92,232.91,20.0]
[1759441448726,15.02661857,232.92,232.91,20.0]
[1759441448951,15.02661857,232.92,232.89,20.0]
[1759441448952,10.73329898,232.92,232.89,20.0]
[1759441449655,11.44329898,232.92,232.89,20.0]
[1759441450472,30.16,232.91,232.89,20.0]
[1759441451169,4.29368827,232.9,232.89,20.0]
[1759441451946,15.73790896,232.9,232.87,20.0]
[1759441452470,15.73790896,232.9,232.85,0.7]
[1759441452471,30.87,232.89,232.85,20.0]
[1759441452683,30.87,232.89,232.82,0.7]
[1759441452684,0.71,232.88,232.82,20.7]
[1759441452840,30.87,232.87,232.82,20.7]
[1759441453039,15.03049041,232.86,232.82,20.7]
[1759441453267,15.74049041,232.86,232.82,20.7]
[1759441453441,15.74049041,232.86,232.82,20.0]
[1759441454537,15.74049041,232.86,232.82,20.7]
[1759441455270,15.03049041,232.86,232.82,20.0]
[1759441455451,15.03049041,232.86,232.79,30.16]
[1759441455452,0.71,232.85,232.8,20.0]
[1759441455654,30.87,232.84,232.8,20.0]
[1759441456749,15.03242708,232.83,232.8,20.0]
[1759441458763,15.03242708,232.83,232.8,20.7]
[1759441460267,15.74242708,232.83,232.8,20.0]
[1759441460569,15.03242708,232.83,232.8,20.7]
[1759441460746,15.03242708,232.83,232.8,20.0]
[1759441460943,15.74242708,232.83,232.8,20.0]
[1759441463239,30.16,232.82,232.8,20.0]
[1759441463561,10.87647521,232.81,232.8,20.0]
[1759441463868,11.58647521,232.81,232.76,20.0]
[1759441464170,30.87,232.8,232.76,20.0]
[1759441464367,30.16,232.8,232.76,20.0]
[1759441464572,11.59647521,232.79,232.76,20.0]
[1759441464872,30.16,232.78,232.76,20.0]
[1759441465635,4.29608626,232.77,232.76,20.0]
[1759441472971,4.29608626,232.77,232.76,20.7]
[1759441473871,4.29608626,232.77,232.76,0.7]
[1759441475774,30.16,232.77,232.76,0.7]
[1759441476086,30.16,232.77,232.74,20.7]
[1759441476263,30.16,232.77,232.75,0.7]
[1759441476974,30.16,232.77,232.76,0.7]
[1759441478080,34.45608626,232.77,232.76,0.7]
[1759441479587,30.16,232.77,232.76,0.7]
[1759441479778,15.03565597,232.78,232.76,0.7]
[1759441479966,30.16,232.77,232.76,0.7]
[1759441480671,34.45608626,232.77,232.76,0.7]
[1759441480877,45.19630192,232.77,232.74,20.0]
[1759441481084,45.19630192,232.77,232.75,0.7]
[1759441483185,10.74021566,232.77,232.75,0.7]
[1759441483379,40.90021566,232.77,232.75,0.7]
[1759441484081,40.90021566,232.77,232.74,20.0]
[1759441484256,45.19630192,232.77,232.76,0.7]
[1759441484456,45.19630192,232.77,232.75,0.7]
[1759441485582,4.29608626,232.77,232.76,20.0]
[1759441485769,4.29608626,232.77,232.76,20.7]
[1759441486771,10.7390957,232.8,232.76,20.7]
[1759441486962,10.7390957,232.8,232.77,0.7]
[1759441487273,0.67,232.79,232.74,20.7]
[1759441487488,40.8990957,232.8,232.75,0.7]
[1759441487685,10.7390957,232.8,232.77,20.0]
[1759441487890,10.7390957,232.8,232.79,20.0]
[1759441488090,10.7390957,232.8,232.79,20.7]
[1759441488392,10.7390957,232.8,232.77,20.0]
[1759441488762,10.7390957,232.8,232.77,20.7]
[1759441488961,10.7390957,232.8,232.78,0.7]
[1759441491586,10.7390957,232.8,232.79,0.7]
[1759441491790,10.7390957,232.8,232.78,0.7]
[1759441492772,41.70647521,232.79,232.75,20.0]
[1759441493669,15.03565597,232.78,232.75,20.0]
[1759441494578,15.03565597,232.78,232.75,20.7]
[1759441494904,30.16,232.77,232.75,20.7]
[1759441495274,4.29627083,232.76,232.75,20.7]
[1759441496294,4.29627083,232.76,232.75,20.0]
[1759441496482,4.29627083,232.76,232.75,20.7]
[1759441496683,4.29627083,232.76,232.75,0.7]
[1759441499492,15.17274604,232.76,232.75,0.7]
[1759441499923,25.91342313,232.76,232.73,20.7]
[1759441500067,25.91342313,232.76,232.74,0.7]
[1759441500267,41.03647521,232.75,232.73,20.0]
[1759441500482,41.70647521,232.75,232.73,20.0]
[1759441500794,41.03647521,232.75,232.73,20.0]
[1759441501169,15.17311523,232.74,232.73,20.0]
[1759441501375,15.17311523,232.74,232.73,20.7]
[1759441502581,15.17311523,232.74,232.73,0.7]
[1759441505695,15.17311523,232.74,232.72,0.92]
[1759441505918,15.17311523,232.74,232.73,0.72]
[1759441506079,15.17311523,232.74,232.72,0.2]
[1759441506279,15.17311523,232.74,232.73,0.72]
[1759441507986,4.29664002,232.74,232.73,0.72]
[1759441508304,15.03694792,232.76,232.73,0.72]
[1759441508684,15.03694792,232.76,232.72,0.2]
[1759441508882,15.03694792,232.76,232.74,20.72]
[1759441509183,4.29627083,232.76,232.75,0.72]
[1759441510387,15.03565597,232.78,232.75,0.72]
[1759441510802,15.03565597,232.78,232.76,20.0]
[1759441510996,15.03565597,232.78,232.77,0.72]
[1759441511683,4.2959017,232.78,232.77,0.72]
[1759441512910,4.29553264,232.8,232.78,20.0]
[1759441513206,4.29553264,232.8,232.79,0.72]
[1759441515085,15.03242708,232.83,232.79,0.72]
[1759441515997,15.03242708,232.83,232.8,20.0]
[1759441516300,15.03242708,232.83,232.81,0.72]
[1759441517399,10.73744792,232.83,232.81,0.72]
[1759441519193,10.73744792,232.83,232.78,20.0]
[1759441519509,10.73744792,232.83,232.82,0.72]
[1759441519700,10.73744792,232.83,232.8,20.72]
[1759441519902,10.73744792,232.83,232.81,0.72]
[1759441520917,10.73744792,232.83,232.8,20.0]
[1759441521119,10.73744792,232.83,232.8,20.72]
[1759441521316,10.73744792,232.83,232.81,0.72]
[1759441521795,10.73744792,232.83,232.82,0.72]
[1759441521996,10.73744792,232.83,232.82,20.72]
[1759441522718,10.73744792,232.83,232.82,20.0]
[1759441523016,4.29461026,232.85,232.84,20.0]
[1759441523516,4.29461026,232.85,232.84,20.72]
[1759441524595,4.29461026,232.85,232.84,20.0]
[1759441524798,4.29461026,232.85,232.84,20.71]
[1759441525198,4.29461026,232.85,232.84,20.0]
[1759441525711,4.29461026,232.85,232.84,20.71]
[1759441525916,45.17022497,232.87,232.84,20.71]
[1759441526421,45.17022497,232.87,232.85,0.71]
[1759441526923,45.17022497,232.87,232.84,20.71]
[1759441527603,45.17022497,232.87,232.84,20.0]
[1759441527806,45.17022497,232.87,232.85,0.71]
[1759441529004,45.17022497,232.87,232.84,20.0]
[1759441529209,45.17022497,232.87,232.85,0.71]
[1759441532411,10.73598355,232.87,232.85,0.71]
[1759441533123,10.73598355,232.87,232.86,0.69]
[1759441533636,34.43387264,232.89,232.86,20.69]
[1759441533938,45.16855424,232.89,232.88,20.0]
[1759441534229,15.02855424,232.89,232.88,20.69]
[1759441536825,15.02855424,232.89,232.88,20.0]
[1759441538036,15.02855424,232.89,232.88,20.69]
[1759441539319,10.7346816,232.89,232.88,20.69]
[1759441539821,10.7346816,232.89,232.88,20.0]
[1759441548237,11.4346816,232.89,232.88,20.0]
[1759441549055,11.4346816,232.89,232.86,20.0]
[1759441549441,15.02855424,232.89,232.86,20.0]
[1759441549640,15.02855424,232.89,232.86,20.69]
[1759441550350,10.7346816,232.89,232.86,20.0]
[1759441550525,10.7346816,232.89,232.87,0.69]
[1759441551156,10.7346816,232.89,232.86,20.0]
[1759441551454,10.7346816,232.89,232.86,20.69]
[1759441552322,10.7346816,232.89,232.86,20.0]
[1759441552526,10.7346816,232.89,232.87,0.69]
[1759441552744,10.7346816,232.89,232.86,20.0]
[1759441552956,10.7346816,232.89,232.87,0.69]
[1759441561048,10.7346816,232.89,232.88,20.69]
[1759441562060,10.7346816,232.89,232.86,20.7]
[1759441562259,10.7346816,232.89,232.87,0.7]
[1759441563658,4.29350392,232.91,232.88,0.7]
[1759441563863,12.89684672,232.89,232.88,20.7]
[1759441564158,4.29350392,232.91,232.88,20.7]
[1759441564336,17.18924187,232.91,232.9,20.0]
[1759441565233,27.92300169,232.91,232.9,20.0]
[1759441566131,27.92300169,232.91,232.9,20.7]
[1759441566945,27.92300169,232.91,232.9,20.0]
[1759441567344,27.92300169,232.91,232.9,20.7]
[1759441567937,27.92300169,232.91,232.9,20.0]
[1759441568754,27.92300169,232.91,232.9,20.7]
[1759441569466,15.02726374,232.91,232.9,20.7]
[1759441569634,15.02726374,232.91,232.9,20.0]
[1759441570034,15.02726374,232.91,232.9,20.7]
[1759441572350,12.89518364,232.92,232.9,20.7]
[1759441572351,15.0246834,232.95,232.9,20.7]
[1759441572540,30.1,232.94,232.9,20.0]
[1759441572737,42.99407517,232.94,232.91,0.7]
[1759441572970,42.99407517,232.94,232.92,0.7]
[1759441573470,4.29313527,232.93,232.92,0.7]
[1759441575148,4.29313527,232.93,232.92,20.7]
[1759441576178,4.29295097,232.94,232.92,20.7]
[1759441576470,4.29295097,232.94,232.93,0.7]
[1759441577470,23.62543772,232.95,232.93,0.7]
[1759441578267,10.73191672,232.95,232.93,0.7]
[1759441578567,15.0246834,232.95,232.94,20.7]
[1759441578748,4.29276668,232.95,232.94,20.7]
[1759441580272,4.2920297,232.99,232.98,20.0]
[1759441580487,4.2920297,232.99,232.98,20.7]
[1759441587369,145.88984853,233.0,232.98,20.7]
[1759441587679,145.88984853,233.0,232.99,0.7]
[1759441587680,141.598,233.0,232.99,0.7]
[1759441596879,141.598,233.0,232.99,13.58466081]
[1759441597073,141.598,233.0,232.99,17.87669051]
[1759441597388,141.598,233.0,232.99,17.83669051]
[1759441600183,101.34728408,233.0,232.99,94.61316572]
[1759441600683,101.34728408,233.0,232.99,124.67316572]
[1759441600890,61.09656816,233.0,232.99,124.67316572]
[1759441601892,20.84585224,233.0,232.99,124.67316572]
[1759441603188,0.2,233.02,233.01,20.8]
[1759441603399,0.2,233.02,233.01,50.86]
[1759441603698,0.2,233.02,233.01,71.52]
[1759441604001,0.2,233.02,233.01,84.40300088]
[1759441604793,0.2,233.02,233.01,88.69466218]
[1759441605062,0.2,233.02,233.01,99.57113739]
[1759441605371,0.2,233.04,233.02,10.87647521]
[1759441605590,0.2,233.04,233.03,50.04]
[1759441605803,0.2,233.04,233.03,50.7]
[1759441605986,0.2,233.04,233.03,63.58189449]
[1759441606591,0.2,233.04,233.03,67.87318745]
[1759441606792,0.2,233.04,233.03,78.74966266]
[1759441608992,141.598,233.06,233.04,10.87647521]
[1759441609280,141.598,233.06,233.03,78.74966266]
[1759441609281,141.598,233.06,233.05,30.04]
[1759441609482,141.598,233.06,233.05,51.5]
[1759441609692,141.598,233.06,233.05,64.3807883]
[1759441610902,141.598,233.06,233.05,88.67171299]
[1759441611076,146.56874058,233.06,233.05,20.0]
[1759441617180,142.278,233.06,233.05,20.0]
[1759441617383,141.598,233.06,233.05,20.0]
[1759441620012,141.598,233.06,233.05,40.8]
[1759441622521,141.598,233.06,233.05,20.0]
[1759441625744,141.598,233.06,233.05,86.61]
[1759441626736,141.598,233.06,233.05,20.71]
[1759441627533,141.598,233.06,233.05,25.00092469]
[1759441628138,125.70447164,233.06,233.05,35.8773999]
[1759441628438,76.02196732,233.06,233.05,35.8773999]
[1759441629137,44.2349106,233.06,233.05,35.8773999]
[1759441629342,10.44593464,233.06,233.05,35.8773999]
[1759441629718,10.44593464,233.06,233.05,39.24177737]
[1759441630232,141.398,233.12,233.11,30.87647521]
[1759441630539,141.398,233.12,233.11,61.60647521]
[1759441631740,141.398,233.12,233.11,35.87629546]
[1759441631942,141.398,233.12,233.11,65.89629546]
[1759441633130,141.398,233.12,233.11,55.01982025]
[1759441633328,141.398,233.12,233.11,65.89629546]
[1759441637538,75.82196732,233.12,233.11,284.49629546]
[1759441637925,75.82196732,233.12,233.11,297.36934572]
[1759441638619,59.92843896,233.12,233.11,297.36934572]
[1759441638825,14.93853147,233.12,233.11,297.36934572]
[1759441639518,0.2,233.13,233.11,297.36934572]
[1759441639519,141.398,233.18,233.15,20.0]
[1759441639760,141.398,233.18,233.17,20.8]
[1759441639761,125.80447164,233.18,233.17,20.8]
[1759441639939,95.95309562,233.18,233.17,61.60647521]
[1759441640933,95.95309562,233.18,233.17,65.18519159]
[1759441641456,95.95309562,233.18,233.17,65.89519159]
[1759441642632,134.478,233.24,233.23,30.87647521]
[1759441642837,134.478,233.24,233.23,61.62647521]
[1759441643353,134.478,233.24,233.23,60.91647521]
[1759441644565,135.148,233.24,233.23,50.04]
[1759441648854,134.478,233.24,233.23,50.04]
[1759441650574,135.148,233.24,233.23,20.0]
[1759441653172,134.478,233.24,233.23,20.0]
[1759441655671,134.478,233.24,233.23,50.08]
[1759441656669,134.478,233.24,233.23,50.77]
[1759441656865,134.478,233.24,233.23,50.08]
[1759441658282,134.478,233.24,233.23,50.77]
[1759441658450,134.478,233.24,233.23,50.08]
[1759441659065,134.478,233.24,233.23,50.77]
[1759441661295,134.478,233.24,233.23,50.08]
[1759441661666,134.478,233.24,233.23,50.77]
[1759441662889,134.478,233.24,233.23,50.08]
[1759441663185,134.478,233.24,233.23,50.77]
[1759441663584,134.478,233.24,233.23,50.08]
[1759441664983,134.478,233.24,233.23,50.77]
[1759441668392,134.478,233.24,233.23,50.08]
[1759441669088,134.478,233.24,233.23,50.77]
[1759441676104,134.478,233.24,233.23,50.08]
[1759441679605,134.478,233.24,233.23,50.77]
[1759441686312,134.478,233.24,233.23,61.64647521]
[1759441686509,134.478,233.24,233.23,74.51676414]
[1759441688747,134.478,233.24,233.23,50.08]
[1759441689254,134.478,233.24,233.23,115.88]
[1759441691546,134.478,233.24,233.23,116.6]